fUSD/lending_fUSD_20240519
["ID","MTS","AMOUNT","RATE_DAILY","PERIOD"]
[327492292,1716125437944,-500.0,0.00024999,2]
[327492293,1716125437954,-506.29454674,0.00024999,2]
[327492294,1716125437964,-506.67184097,0.00024999,2]
[327492295,1716125437974,-164.40198896,0.00024999,2]
[327492296,1716125437984,-500.0,0.00024999,2]
[327492297,1716125437994,-525.64152722,0.00024999,2]
[327492298,1716125438004,-500.0,0.00024999,2]
[327492299,1716125438020,-644.44759674,0.00024999,2]
[327492300,1716125438030,-513.7830296,0.00024999,2]
[327492301,1716125438040,-500.0,0.00024999,2]
[327492302,1716125438050,-500.0,0.00024999,2]
[327492303,1716125438060,-500.0,0.00024999,2]
[327492304,1716125438070,-500.0,0.00024999,2]
[327492305,1716125438080,-186.57240135,0.00024999,2]
[327492306,1716125438089,-530.74238284,0.00024999,2]
[327492307,1716125438099,-500.0,0.00024999,2]
[327492308,1716125438109,-500.0,0.00024999,2]
[327492310,1716125438118,-500.0,0.00024999,2]
[327492311,1716125438128,-500.0,0.00024999,2]
[327492312,1716125438138,-500.0,0.00024999,2]
[327492313,1716125438152,-500.0,0.00024999,2]
[327492314,1716125438162,-500.0,0.00024999,2]
[327492315,1716125438171,-500.0,0.00024999,2]
[327492316,1716125438181,-780.74,0.00024999,2]
[327492317,1716125438191,-500.0,0.00024999,2]
[327492318,1716125438201,-500.0,0.00024999,2]
[327492319,1716125438210,-500.0,0.00024999,2]
[327492320,1716125438220,-500.0,0.00024999,2]
[327492321,1716125438230,-521.83253252,0.00024999,2]
[327492322,1716125438241,-500.0,0.00024999,2]
[327492323,1716125438250,-641.85472925,0.00024999,2]
[327492324,1716125438262,-500.0,0.00024999,2]
[327492325,1716125438272,-523.13925172,0.00024999,2]
[327492326,1716125438281,-500.0,0.00024999,2]
[327492327,1716125438291,-500.0,0.00024999,2]
[327492328,1716125438301,-513.28003075,0.00024999,2]
[327492329,1716125438310,-500.0,0.00024999,2]
[327492330,1716125438319,-500.0,0.00024999,2]
[327492331,1716125438329,-500.0,0.00024999,2]
[327492333,1716125438339,-500.0,0.00024999,2]
[327492335,1716125438349,-500.0,0.00024999,2]
[327492337,1716125438358,-500.0,0.00024999,2]
[327492339,1716125438368,-515.05639702,0.00024999,2]
[327492341,1716125438378,-500.0,0.00024999,2]
[327492342,1716125438388,-500.0,0.00024999,2]
[327492343,1716125438397,-500.0,0.00024999,2]
[327492344,1716125438407,-500.0,0.00024999,2]
[327492345,1716125438417,-500.0,0.00024999,2]
[327492346,1716125438427,-500.0,0.00024999,2]
[327492347,1716125438436,-500.0,0.00024999,2]
[327492348,1716125438446,-500.0,0.00024999,2]
[327492349,1716125438455,-511.28184468,0.00024999,2]
[327492350,1716125438465,-500.0,0.00024999,2]
[327492351,1716125438474,-500.0,0.00024999,2]
[327492352,1716125438484,-500.0,0.00024999,2]
[327492353,1716125438493,-437.85327217,0.00024999,2]
[327492354,1716125438502,-500.0,0.00024999,2]
[327492355,1716125438515,-500.0,0.00024999,2]
[327492356,1716125438524,-500.0,0.00024999,2]
[327492357,1716125438533,-500.0,0.00024999,2]
[327492358,1716125438542,-500.0,0.00024999,2]
[327492359,1716125438552,-500.0,0.00024999,2]
[327492360,1716125438561,-284.09,0.00024999,2]
[327492361,1716125438570,-500.0,0.00024999,2]
[327492362,1716125438579,-500.0,0.00024999,2]
[327492363,1716125438588,-500.0,0.00024999,2]
[327492364,1716125438598,-500.0,0.00024999,2]
[327492365,1716125438608,-619.66,0.00024999,2]
[327492366,1716125438617,-500.0,0.00024999,2]
[327492367,1716125438626,-500.0,0.00024999,2]
[327492368,1716125438637,-500.0,0.00024999,2]
[327492369,1716125438647,-500.0,0.00024999,2]
[327492370,1716125438656,-500.0,0.00024999,2]
[327492371,1716125438666,-500.0,0.00024999,2]
[327492372,1716125438675,-500.0,0.00024999,2]
[327492373,1716125438686,-500.0,0.00024999,2]
[327492374,1716125438695,-500.0,0.00024999,2]
[327492375,1716125438704,-500.0,0.00024999,2]
[327492378,1716125438714,-500.0,0.00024999,2]
[327492379,1716125438723,-500.0,0.00024999,2]
[327492381,1716125438733,-500.0,0.00024999,2]
[327492382,1716125438742,-500.0,0.00024999,2]
[327492383,1716125438751,-516.00864902,0.00024999,2]
[327492384,1716125438765,-500.0,0.00024999,2]
[327492385,1716125438774,-604.90420233,0.00024999,2]
[327492386,1716125438784,-500.0,0.00024999,2]
[327492387,1716125438793,-500.0,0.00024999,2]
[327492388,1716125438802,-502.26539887,0.00024999,2]
[327492389,1716125438811,-500.0,0.00024999,2]
[327492391,1716125438820,-500.0,0.00024999,2]
[327492392,1716125438829,-564.53246837,0.00024999,2]
[327492394,1716125438839,-500.0,0.00024999,2]
[327492396,1716125438848,-522.51088708,0.00024999,2]
[327492397,1716125438857,-846.91,0.00024999,2]
[327492400,1716125438866,-553.08,0.00024999,2]
[327492402,1716125438875,-500.0,0.00024999,2]
[327492403,1716125438884,-500.0,0.00024999,2]
[327492404,1716125438894,-642.86579954,0.00024999,2]
[327492405,1716125438903,-500.0,0.00024999,2]
[327492406,1716125438912,-500.0,0.00024999,2]
[327492407,1716125438921,-500.0,0.00024999,2]
[327492408,1716125438930,-500.0,0.00024999,2]
[327492409,1716125438940,-379.49,0.00024999,2]
[327492410,1716125438949,-500.0,0.00024999,2]
[327492411,1716125438959,-500.0,0.00024999,2]
[327492412,1716125438968,-500.0,0.00024999,2]
[327492413,1716125438978,-500.0,0.00024999,2]
[327492414,1716125438987,-500.0,0.00024999,2]
[327492415,1716125438996,-500.0,0.00024999,2]
[327492416,1716125439006,-500.0,0.00024999,2]
[327492417,1716125439018,-500.0,0.00024999,2]
[327492418,1716125439027,-500.0,0.00024999,2]
[327492419,1716125439037,-586.86,0.00024999,2]
[327492420,1716125439046,-500.0,0.00024999,2]
[327492421,1716125439056,-500.0,0.00024999,2]
[327492422,1716125439066,-500.0,0.00024999,2]
[327492423,1716125439076,-569.94690766,0.00024999,2]
[327492424,1716125439085,-1034.55507975,0.00024999,2]
[327492425,1716125439096,-500.0,0.00024999,2]
[327492426,1716125439106,-500.0,0.00024999,2]
[327492427,1716125439116,-597.70949467,0.00024999,2]
[327492428,1716125439126,-982.33,0.00024999,2]
[327492429,1716125439135,-500.0,0.00024999,2]
[327492430,1716125439144,-408.99894469,0.00024999,2]
[327492431,1716125439156,-500.0,0.00024999,2]
[327492432,1716125439166,-527.41074787,0.00024999,2]
[327492433,1716125439175,-615.97,0.00024999,2]
[327492434,1716125439185,-500.0,0.00024999,2]
[327492435,1716125439198,-649.93293539,0.00024999,2]
[327492436,1716125439208,-1644.32,0.00024999,2]
[327492437,1716125439217,-500.0,0.00024999,2]
[327492438,1716125439228,-523.51159865,0.00024999,2]
[327492439,1716125439238,-1782.9,0.00024999,2]
[327492440,1716125439249,-500.0,0.00024999,2]
[327492441,1716125439260,-500.0,0.00024999,2]
[327492442,1716125439273,-500.0,0.00024999,2]
[327492443,1716125439283,-700.7,0.00024999,2]
[327492444,1716125439293,-1923.11,0.00024999,2]
[327492445,1716125439304,-632.91787158,0.00024999,2]
[327492446,1716125439313,-500.0,0.00024999,2]
[327492447,1716125439324,-1095.98,0.00024999,2]
[327492448,1716125439333,-500.0,0.00024999,2]
[327492449,1716125439344,-565.98,0.00024999,2]
[327492450,1716125439353,-530.48916228,0.00024999,2]
[327492451,1716125439363,-1383.57,0.00024999,2]
[327492452,1716125439373,-500.0,0.00024999,2]
[327492453,1716125439383,-535.97001183,0.00024999,2]
[327492454,1716125439393,-1151.71,0.00024999,2]
[327492455,1716125439403,-500.0,0.00024999,2]
[327492456,1716125439414,-1219.6,0.00024999,2]
[327492457,1716125439424,-500.0,0.00024999,2]
[327492458,1716125439434,-500.0,0.00024999,2]
[327492459,1716125439443,-848.32,0.00024999,2]
[327492460,1716125439464,-500.0,0.00024999,2]
[327492461,1716125439475,-500.0,0.00024999,2]
[327492462,1716125439485,-542.11600169,0.00024999,2]
[327492463,1716125439496,-228.56182891,0.00024999,2]
[327492464,1716125439507,-777.11,0.00024999,2]
[327492465,1716125439521,-500.0,0.00024999,2]
[327492466,1716125439531,-500.0,0.00024999,2]
[327492467,1716125439541,-500.0,0.00024999,2]
[327492468,1716125439551,-500.0,0.00024999,2]
[327492469,1716125439561,-1055.0,0.00024999,2]
[327492470,1716125439571,-500.0,0.00024999,2]
[327492471,1716125439581,-340.46955283,0.00024999,2]
[327492472,1716125439592,-512.59,0.00024999,2]
[327492473,1716125439602,-500.0,0.00024999,2]
[327492474,1716125439612,-500.0,0.00024999,2]
[327492475,1716125439625,-500.0,0.00024999,2]
[327492476,1716125439635,-500.0,0.00024999,2]
[327492477,1716125439645,-255.5953738,0.00024999,2]
[327492478,1716125439655,-541.07,0.00024999,2]
[327492479,1716125439665,-500.0,0.00024999,2]
[327492480,1716125439675,-828.51,0.00024999,2]
[327492481,1716125439688,-500.0,0.00024999,2]
[327492482,1716125439698,-500.0,0.00024999,2]
[327492483,1716125439709,-989.78,0.00024999,2]
[327492484,1716125439719,-614.50711949,0.00024999,2]
[327492485,1716125439729,-500.0,0.00024999,2]
[327492486,1716125439741,-428.03808172,0.00024999,2]
[327492487,1716125439751,-500.0,0.00024999,2]
[327492488,1716125439764,-500.0,0.00024999,2]
[327492489,1716125439775,-500.0,0.00024999,2]
[327492490,1716125439785,-500.0,0.00024999,2]
[327492491,1716125439796,-506.69696561,0.00024999,2]
[327492492,1716125439807,-1162.85,0.00024999,2]
[327492493,1716125439817,-500.0,0.00024999,2]
[327492494,1716125439828,-500.0,0.00024999,2]
[327492495,1716125439838,-540.7,0.00024999,2]
[327492496,1716125439848,-500.0,0.00024999,2]
[327492497,1716125439859,-500.0,0.00024999,2]
[327492498,1716125439870,-3682.75,0.00024999,2]
[327492499,1716125439881,-500.0,0.00024999,2]
[327492500,1716125439892,-500.0,0.00024999,2]
[327492503,1716125440128,-500.0,0.00024999,2]
[327492504,1716125440140,-1892.05,0.00024999,2]
[327492505,1716125440154,-503.92772086,0.00024999,2]
[327492506,1716125440164,-500.0,0.00024999,2]
[327492507,1716125440173,-500.0,0.00024999,2]
[327492508,1716125440184,-1015.08,0.00024999,2]
[327492509,1716125440195,-878.61,0.00024999,2]
[327492510,1716125440205,-276.94123529,0.00024999,2]
[327492511,1716125440215,-500.0,0.00024999,2]
[327492512,1716125440225,-500.0,0.00024999,2]
[327492513,1716125440238,-500.0,0.00024999,2]
[327492514,1716125440248,-460.32,0.00024999,2]
[327492515,1716125440258,-500.0,0.00024999,2]
[327492516,1716125440271,-871.12,0.00024999,2]
[327492517,1716125440281,-500.0,0.00024999,2]
[327492518,1716125440290,-500.0,0.00024999,2]
[327492519,1716125440300,-500.0,0.00024999,2]
[327492520,1716125440310,-500.0,0.00024999,2]
[327492521,1716125440320,-500.0,0.00024999,2]
[327492522,1716125440330,-500.0,0.00024999,2]
[327492523,1716125440341,-1467.74,0.00024999,2]
[327492524,1716125440351,-500.0,0.00024999,2]
[327492525,1716125440360,-1893.57,0.00024999,2]
[327492526,1716125440370,-500.0,0.00024999,2]
[327492527,1716125440380,-436.35,0.00024999,2]
[327492528,1716125440390,-533.14,0.00024999,2]
[327492529,1716125440400,-500.0,0.00024999,2]
[327492530,1716125440410,-500.0,0.00024999,2]
[327492531,1716125440419,-500.0,0.00024999,2]
[327492532,1716125440429,-500.0,0.00024999,2]
[327492533,1716125440439,-656.36,0.00024999,2]
[327492534,1716125440448,-615.22,0.00024999,2]
[327492535,1716125440458,-500.0,0.00024999,2]
[327492536,1716125440467,-810.74,0.00024999,2]
[327492537,1716125440477,-290.54,0.00024999,2]
[327492538,1716125440486,-508.06286393,0.00024999,2]
[327492539,1716125440496,-500.0,0.00024999,2]
[327492540,1716125440506,-305.92674948,0.00024999,2]
[327492541,1716125440518,-500.0,0.00024999,2]
[327492542,1716125440526,-997.13,0.00024999,2]
[327492543,1716125440535,-674.79,0.00024999,2]
[327492544,1716125440545,-837.85,0.00024999,2]
[327492545,1716125440554,-2150.8,0.00024999,2]
[327492546,1716125440563,-500.0,0.00024999,2]
[327492547,1716125440573,-513.66557848,0.00024999,2]
[327492548,1716125440583,-500.0,0.00024999,2]
[327492549,1716125440592,-500.0,0.00024999,2]
[327492550,1716125440602,-827.03,0.00024999,2]
[327492551,1716125440612,-500.0,0.00024999,2]
[327492552,1716125440622,-500.0,0.00024999,2]
[327492553,1716125440631,-2747.6,0.00024999,2]
[327492554,1716125440641,-500.0,0.00024999,2]
[327492555,1716125440652,-500.0,0.00024999,2]
[327492556,1716125440662,-1069.79,0.00024999,2]
[327492557,1716125440671,-500.0,0.00024999,2]
[327492558,1716125440682,-500.0,0.00024999,2]
[327492559,1716125440692,-4457.98,0.00024999,2]
[327492560,1716125440701,-500.0,0.00024999,2]
[327492561,1716125440711,-500.0,0.00024999,2]
[327492562,1716125440720,-500.0,0.00024999,2]
[327492563,1716125440730,-500.0,0.00024999,2]
[327492564,1716125440739,-500.0,0.00024999,2]
[327492565,1716125440749,-925.95,0.00024999,2]
[327492566,1716125440759,-500.0,0.00024999,2]
[327492567,1716125440770,-500.0,0.00024999,2]
[327492568,1716125440780,-500.0,0.00024999,2]
[327492569,1716125440789,-896.89,0.00024999,2]
[327492570,1716125440799,-500.0,0.00024999,2]
[327492571,1716125440809,-500.0,0.00024999,2]
[327492572,1716125440818,-500.0,0.00024999,2]
[327492573,1716125440828,-500.0,0.00024999,2]
[327492574,1716125440838,-997.04,0.00024999,2]
[327492575,1716125440847,-509.35,0.00024999,2]
[327492576,1716125440857,-6546.3,0.00024999,2]
[327492577,1716125440867,-500.0,0.00024999,2]
[327492578,1716125440876,-500.0,0.00024999,2]
[327492579,1716125440885,-744.57,0.00024999,2]
[327492580,1716125440894,-500.0,0.00024999,2]
[327492581,1716125440904,-1036.81,0.00024999,2]
[327492582,1716125440913,-500.0,0.00024999,2]
[327492583,1716125440923,-500.0,0.00024999,2]
[327492584,1716125440932,-500.0,0.00024999,2]
[327492585,1716125440941,-500.0,0.00024999,2]
[327492586,1716125440951,-500.0,0.00024999,2]
[327492587,1716125440960,-500.0,0.00024999,2]
[327492588,1716125440970,-2745.43,0.00024999,2]
[327492589,1716125440979,-500.0,0.00024999,2]
[327492590,1716125440988,-465.35,0.00024999,2]
[327492591,1716125440997,-521.3,0.00024999,2]
[327492592,1716125441006,-500.0,0.00024999,2]
[327492593,1716125441017,-1015.07,0.00024999,2]
[327492594,1716125441026,-155989.30486264,0.00025,2]
[327492595,1716125441349,-5360.194904,0.00025,2]
[327492596,1716125441361,-882.33461522,0.00025,2]
[327492597,1716125441372,-580.73799424,0.00025,2]
[327492598,1716125441383,-4667.82184375,0.00025,2]
[327492599,1716125441398,-16790.000005,0.00025,2]
[327492600,1716125441419,-16982.66283877,0.00025,2]
[327492601,1716125441430,-399.20391486,0.00025,2]
[327492602,1716125441441,-1275.28,0.00025,2]
[327492603,1716125441857,-205.41424698,0.0002499,2]
[327492604,1716125441866,-500.0,0.00024999,2]
[327492605,1716125441875,-36909.14999815,0.00025,13]
[327492606,1716125441891,-12544.64526687,0.00025,13]
[327492607,1716125441903,-927.58685553,0.00025,13]
[327492608,1716125441933,-703.58969912,0.00025,13]
[327492609,1716125441944,-1466.88746637,0.00025,13]
[327492610,1716125441956,-280.56548265,0.00025,13]
[327492611,1716125441967,-1668.82909294,0.00025,13]
[327492612,1716125441983,-34865.74,0.00025,13]
[327492613,1716125442151,-3373.60411151,0.00025,13]
[327492614,1716125442163,-10030.75000833,0.00025,13]
[327492615,1716125442174,-4364.5127787,0.00025,13]
[327492616,1716125442185,-406.52440174,0.00025,13]
[327492617,1716125442198,-253.44497898,0.00025,13]
[327492618,1716125442209,-345.91147168,0.00025,13]
[327492619,1716125442220,-1087.29,0.00025,13]
[327492620,1716125442233,-6633.4271,0.00025,13]
[327492621,1716125442246,-281.186742,0.00025,13]
[327492622,1716125442266,-17809.42649941,0.00025,13]
[327492623,1716125442277,-39224.19838232,0.00025,13]
[327492624,1716125442292,-799.464547,0.00025,13]
[327492625,1716125442303,-4615.48261927,0.00025,13]
[327492626,1716125442315,-17707.63686287,0.00025,13]
[327492627,1716125442327,-1841.28543829,0.00025,13]
[327492628,1716125442338,-1780.90789548,0.00025,13]
[327492629,1716125442364,-5647.50256487,0.00025,13]
[327492630,1716125442375,-705.1796469,0.00025,13]
[327492631,1716125442387,-2042.5592996,0.00025,13]
[327492632,1716125442398,-4684.17665343,0.00025,13]
[327492647,1716125443667,-500.0,0.00024999,2]
[327492648,1716125443676,-41.5,0.00025,13]
[327492649,1716125443688,-6387.42716214,0.00025,13]
[327492650,1716125443699,-1473.36299427,0.00025,13]
[327492651,1716125443715,-500.0,0.00024998,2]
[327492652,1716125443724,-1461.70242835,0.00025,13]
[327492653,1716125443845,-310270.20266387,0.00025,13]
[327492654,1716125443855,-282235.45902152,0.00025,2]
[327492655,1716125443864,-155.776781,0.00025,7]
[327492656,1716125443874,-151.0,0.00025,7]
[327492657,1716125443884,-151.0,0.00025,7]
[327492658,1716125443893,-151.0,0.00025,7]
[327492659,1716125443903,-151.0,0.00025,7]
[327492660,1716125443912,-151.0,0.00025,7]
[327492661,1716125443922,-151.0,0.00025,7]
[327492662,1716125443931,-151.0,0.00025,7]
[327492663,1716125443940,-151.0,0.00025,7]
[327492664,1716125443949,-151.0,0.00025,7]
[327492665,1716125443959,-151.0,0.00025,7]
[327492666,1716125443968,-151.0,0.00025,7]
[327492667,1716125443978,-151.0,0.00025,7]
[327492668,1716125443987,-979.78265876,0.00025,7]
[327492669,1716125443996,-151.0,0.00025,7]
[327492670,1716125444006,-160.277292,0.00025,7]
[327492671,1716125444016,-160.277292,0.00025,7]
[327492672,1716125444027,-152.535288,0.00025,7]
[327492673,1716125444036,-151.0,0.00025,7]
[327492674,1716125444046,-151.0,0.00025,7]
[327492676,1716125444055,-151.0,0.00025,7]
[327492678,1716125444064,-24646.96498353,0.00025,7]
[327492679,1716125444074,-151.0,0.00025,7]
[327492680,1716125444083,-151.0,0.00025,7]
[327492681,1716125444093,-151.0,0.00025,7]
[327492682,1716125444102,-206.14818,0.00025,7]
[327492683,1716125444112,-151.0,0.00025,7]
[327492684,1716125444121,-151.0,0.00025,7]
[327492685,1716125444130,-39664.5267496,0.00025,2]
[327492686,1716125444140,-206.14818,0.00025,7]
[327492687,1716125444153,-151.0,0.00025,7]
[327492688,1716125444162,-506.363244,0.00025,7]
[327492689,1716125444171,-24008.46879647,0.00025137,2]
[327492690,1716125444180,-657.56,0.00025272,2]
[327492691,1716125444190,-506.18,0.00025272,2]
[327492692,1716125444201,-500.0,0.00025272,2]
[327492693,1716125444211,-500.0,0.00025272,2]
[327492694,1716125444220,-500.0,0.00025272,2]
[327492695,1716125444230,-500.0,0.00025272,2]
[327492696,1716125444241,-879.12,0.00025272,2]
[327492697,1716125444250,-671.24,0.00025272,2]
[327492698,1716125444260,-500.0,0.00025272,2]
[327492699,1716125444269,-609.43,0.00025272,2]
[327492700,1716125444279,-500.0,0.00025272,2]
[327492701,1716125444288,-2500.45,0.00025272,2]
[327492702,1716125444298,-500.0,0.00025272,2]
[327492703,1716125444308,-500.0,0.00025272,2]
[327492704,1716125444317,-843.99,0.00025272,2]
[327492705,1716125444327,-500.0,0.00025272,2]
[327492706,1716125444337,-500.0,0.00025272,2]
[327492707,1716125444347,-500.0,0.00025272,2]
[327492708,1716125444356,-568.61,0.00025272,2]
[327492709,1716125444366,-817.19,0.00025272,2]
[327492710,1716125444375,-500.0,0.00025272,2]
[327492711,1716125444385,-854.39,0.00025272,2]
[327492712,1716125444394,-666.0,0.00025272,2]
[327492713,1716125444404,-500.0,0.00025272,2]
[327492714,1716125444414,-406.0447685,0.00025272,2]
[327492715,1716125444424,-500.0,0.00025272,2]
[327492716,1716125444434,-501.70660413,0.00025272,2]
[327492717,1716125444444,-637.12,0.00025272,2]
[327492718,1716125444454,-857.61,0.00025272,2]
[327492719,1716125444464,-500.0,0.00025272,2]
[327492720,1716125444474,-500.0,0.00025272,2]
[327492721,1716125444484,-500.0,0.00025272,2]
[327492722,1716125444494,-518.83,0.00025272,2]
[327492723,1716125444503,-500.0,0.00025272,2]
[327492724,1716125444512,-726.23,0.00025272,2]
[327492725,1716125444522,-762.51,0.00025272,2]
[327492726,1716125444532,-500.0,0.00025272,2]
[327492727,1716125444541,-1281.27,0.00025272,2]
[327492728,1716125444551,-1187.11,0.00025272,2]
[327492729,1716125444560,-820.48,0.00025272,2]
[327492730,1716125444571,-500.0,0.00025272,2]
[327492731,1716125444581,-1052.6,0.00025272,2]
[327492732,1716125444590,-763.43,0.00025272,2]
[327492733,1716125444600,-1150.72,0.00025272,2]
[327492734,1716125444611,-500.0,0.00025272,2]
[327492735,1716125444621,-3667.38,0.00025272,2]
[327492736,1716125444631,-1211.58,0.00025272,2]
[327492737,1716125444642,-986.86,0.00025272,2]
[327492738,1716125444653,-500.0,0.00025272,2]
[327492739,1716125444663,-500.0,0.00025272,2]
[327492740,1716125444673,-740.89,0.00025272,2]
[327492741,1716125444683,-533.27,0.00025272,2]
[327492742,1716125444693,-500.0,0.00025272,2]
[327492743,1716125444703,-500.0,0.00025272,2]
[327492744,1716125444713,-151.0,0.00025272,7]
[327492745,1716125444724,-246.818968,0.00025272,7]
[327492746,1716125444734,-975.8,0.00025272,2]
[327492747,1716125444743,-1384.87,0.00025272,2]
[327492748,1716125444754,-500.0,0.00025272,2]
[327492749,1716125444764,-206.14818,0.00025272,7]
[327492750,1716125444777,-1006.42,0.00025272,2]
[327492751,1716125444787,-151.0,0.00025272,7]
[327492752,1716125444797,-151.0,0.00025272,7]
[327492753,1716125444807,-206.14818,0.00025272,7]
[327492754,1716125444817,-151.0,0.00025272,7]
[327492755,1716125444827,-500.0,0.00025272,2]
[327492756,1716125444837,-2304.66,0.00025272,2]
[327492757,1716125444847,-2722.15,0.00025272,2]
[327492758,1716125444858,-3116.58,0.00025272,2]
[327492759,1716125444868,-500.0,0.00025272,2]
[327492760,1716125444879,-500.0,0.00025272,2]
[327492761,1716125444889,-500.0,0.00025272,2]
[327492762,1716125444898,-942.59,0.00025272,2]
[327492763,1716125444910,-500.0,0.00025272,2]
[327492764,1716125444921,-500.0,0.00025272,2]
[327492765,1716125444931,-500.0,0.00025272,2]
[327492766,1716125444941,-15816.75,0.00025272,2]
[327492767,1716125444951,-500.0,0.00025272,2]
[327492768,1716125444960,-344.24093195,0.00025272,2]
[327492769,1716125444970,-849.34,0.00025272,2]
[327492770,1716125444979,-500.0,0.00025272,2]
[327492771,1716125444989,-500.0,0.00025272,2]
[327492772,1716125444999,-241.83964895,0.00025272,2]
[327492773,1716125445010,-326.21,0.00025272,2]
[327492774,1716125445020,-500.0,0.00025272,2]
[327492775,1716125445029,-500.0,0.00025272,2]
[327492776,1716125445039,-500.0,0.00025272,2]
[327492777,1716125445050,-500.0,0.00025272,2]
[327492778,1716125445059,-500.0,0.00025272,2]
[327492779,1716125445069,-1608.23,0.00025272,2]
[327492780,1716125445079,-500.0,0.00025272,2]
[327492781,1716125445088,-500.0,0.00025272,2]
[327492782,1716125445098,-500.0,0.00025272,2]
[327492783,1716125445107,-9478.72,0.00025272,2]
[327492784,1716125445116,-500.0,0.00025272,2]
[327492785,1716125445126,-506.363244,0.00025272,7]
[327492786,1716125445136,-500.0,0.00025273,2]
[327492787,1716125445145,-500.0,0.00025273,2]
[327492788,1716125445155,-500.0,0.00025273,2]
[327492789,1716125445169,-297.20474774,0.00025273,2]
[327492790,1716125445179,-500.0,0.00025273,2]
[327492791,1716125445188,-500.0,0.00025273,2]
[327492792,1716125445199,-500.0,0.00025273,2]
[327492793,1716125445208,-500.0,0.00025273,2]
[327492794,1716125445218,-500.0,0.00025273,2]
[327492795,1716125445228,-514.08,0.00025273,2]
[327492796,1716125445240,-195.25343238,0.00025273,2]
[327492797,1716125445251,-500.0,0.00025273,2]
[327492798,1716125445260,-500.0,0.00025273,2]
[327492799,1716125445271,-500.0,0.00025273,2]
[327492800,1716125445280,-433.40494853,0.00025273,2]
[327492801,1716125445289,-500.0,0.00025273,2]
[327492802,1716125445298,-500.0,0.00025273,2]
[327492803,1716125445308,-509.50982843,0.00025273,2]
[327492804,1716125445317,-500.0,0.00025273,2]
[327492805,1716125445328,-500.0,0.00025273,2]
[327492806,1716125445338,-500.0,0.00025273,7]
[327492807,1716125445347,-235.52851592,0.00025273,2]
[327492808,1716125445357,-500.0,0.00025273,2]
[327492809,1716125445366,-500.0,0.00025273,2]
[327492810,1716125445375,-500.0,0.00025273,2]
[327492811,1716125445385,-558.66,0.00025273,2]
[327492812,1716125445395,-500.0,0.00025273,2]
[327492813,1716125445405,-500.0,0.00025273,2]
[327492814,1716125445414,-500.0,0.00025273,2]
[327492815,1716125445425,-500.0,0.00025273,2]
[327492816,1716125445435,-500.0,0.00025273,2]
[327492817,1716125445444,-205.42229991,0.00025273,2]
[327492818,1716125445453,-500.0,0.00025273,2]
[327492819,1716125445463,-263.48,0.00025273,2]
[327492820,1716125445473,-512.88177987,0.00025273,2]
[327492821,1716125445482,-500.0,0.00025273,2]
[327492822,1716125445493,-500.0,0.00025273,2]
[327492823,1716125445503,-500.0,0.00025273,2]
[327492824,1716125445512,-328.83,0.00025273,2]